[Event "Late-Titled-Tuesday-Blitz-October-24-2023"]
[Site "Chess.com"]
[Date "2023.10.24"]
[Round "11"]
[White "Ykow"]
[Black "sergiochess83"]
[Result "0-1"]
[WhiteElo "2582"]
[BlackElo "2885"]
[TimeControl "180+1"]
[EndTime "16:06:27 PDT"]
[Termination "sergiochess83 won by resignation"]

1. e4 {[%clk 0:02:54.5]} 1... e6 {[%clk 0:02:59.8]} 2. d4 {[%clk 0:02:53.3]}
2... d5 {[%clk 0:02:59.6]} 3. exd5 {[%clk 0:02:54.2]} 3... exd5 {[%clk
0:02:58.3]} 4. Nf3 {[%clk 0:02:55.1]} 4... Nc6 {[%clk 0:02:56.2]} 5. Bb5 {[%clk
0:02:52.7]} 5... Bd6 {[%clk 0:02:55.5]} 6. c4 {[%clk 0:02:52.5]} 6... dxc4
{[%clk 0:02:54.4]} 7. d5 {[%clk 0:02:52.5]} 7... a6 {[%clk 0:02:53.7]} 8. Bxc4
{[%clk 0:02:52.1]} 8... Nce7 {[%clk 0:02:49.5]} 9. Nc3 {[%clk 0:02:50.3]} 9...
Nf6 {[%clk 0:02:49.7]} 10. Bg5 {[%clk 0:02:49.3]} 10... Bf5 {[%clk 0:02:40.5]}
11. O-O {[%clk 0:02:45.3]} 11... Qd7 {[%clk 0:02:23.7]} 12. Re1 {[%clk
0:02:43.3]} 12... O-O-O {[%clk 0:02:23.4]} 13. Rc1 {[%clk 0:02:42.4]} 13... Kb8
{[%clk 0:02:22.7]} 14. Qb3 {[%clk 0:02:30.1]} 14... Ka8 {[%clk 0:02:18.4]} 15.
Nb5 {[%clk 0:01:30]} 15... Nc8 {[%clk 0:02:03.3]} 16. Nbd4 {[%clk 0:01:25.5]}
16... Rde8 {[%clk 0:01:49.8]} 17. Bxa6 {[%clk 0:00:53.1]} 17... bxa6 {[%clk
0:01:43.4]} 18. Qc4 {[%clk 0:00:52.2]} 18... Na7 {[%clk 0:01:33.9]} 19. Qxa6
{[%clk 0:00:49.6]} 19... Rxe1+ {[%clk 0:01:13.5]} 20. Rxe1 {[%clk 0:00:47.5]}
20... Nxd5 {[%clk 0:01:11.2]} 21. Qa5 {[%clk 0:00:37.1]} 21... Bb4 {[%clk
0:01:05.3]} 22. Qa6 {[%clk 0:00:32.4]} 22... Bxe1 {[%clk 0:00:59.6]} 23. Ne5
{[%clk 0:00:32.8]} 23... Nb4 {[%clk 0:00:40.4]} 24. Qc4 {[%clk 0:00:21.2]} 24...
Qd5 {[%clk 0:00:39.7]} 25. Qxc7 {[%clk 0:00:20.7]} 25... Rc8 {[%clk 0:00:38.4]}
26. Qb6 {[%clk 0:00:18.1]} 26... Qxe5 {[%clk 0:00:24.7]} 27. Be3 {[%clk
0:00:18.3]} 27... Bxf2+ {[%clk 0:00:19.4]} 28. Kxf2 {[%clk 0:00:19.2]} 28...
Qxe3+ {[%clk 0:00:19.3]} 29. Kxe3 {[%clk 0:00:17.9]} 29... Nd5+ {[%clk
0:00:19.5]} 0-1

[Event "Late-Titled-Tuesday-Blitz-October-24-2023"]
[Site "Chess.com"]
[Date "2023.10.24"]
[Round "11"]
[White "Duhless"]
[Black "Angry_Twin"]
[Result "1/2-1/2"]
[WhiteElo "3114"]
[BlackElo "2963"]
[TimeControl "180+1"]
[EndTime "16:06:32 PDT"]
[Termination "Game drawn by repetition"]

1. d4 {[%clk 0:03:00.9]} 1... Nf6 {[%clk 0:02:59.8]} 2. Nf3 {[%clk 0:02:58.4]}
2... d5 {[%clk 0:02:59.7]} 3. c4 {[%clk 0:02:58.7]} 3... e6 {[%clk 0:02:59.7]}
4. g3 {[%clk 0:02:59.4]} 4... Bb4+ {[%clk 0:02:59.7]} 5. Nc3 {[%clk 0:02:59.1]}
5... O-O {[%clk 0:02:57.6]} 6. Bg2 {[%clk 0:02:59.5]} 6... dxc4 {[%clk
0:02:58.3]} 7. O-O {[%clk 0:02:59.5]} 7... Nc6 {[%clk 0:02:59]} 8. Qa4 {[%clk
0:02:58.4]} 8... Rb8 {[%clk 0:02:56.6]} 9. Qb5 {[%clk 0:02:50.7]} 9... Bxc3
{[%clk 0:02:26.2]} 10. bxc3 {[%clk 0:02:51.6]} 10... Qd5 {[%clk 0:02:26.4]} 11.
a4 {[%clk 0:02:51.3]} 11... a6 {[%clk 0:02:21.1]} 12. Qb1 {[%clk 0:02:49.7]}
12... Qd7 {[%clk 0:02:10]} 13. e4 {[%clk 0:02:34.5]} 13... h6 {[%clk 0:02:10]}
14. g4 {[%clk 0:02:25.2]} 14... b5 {[%clk 0:01:50.3]} 15. g5 {[%clk 0:02:18.7]}
15... hxg5 {[%clk 0:01:50.2]} 16. e5 {[%clk 0:01:54.6]} 16... Nh7 {[%clk
0:01:37.8]} 17. Nxg5 {[%clk 0:01:54]} 17... Nxg5 {[%clk 0:01:36.2]} 18. Bxg5
{[%clk 0:01:54.9]} 18... Bb7 {[%clk 0:01:26.8]} 19. f4 {[%clk 0:01:44.3]} 19...
Ne7 {[%clk 0:01:21.4]} 20. Bxe7 {[%clk 0:01:42.6]} 20... Qxe7 {[%clk 0:01:21.3]}
21. Bxb7 {[%clk 0:01:42.5]} 21... Rxb7 {[%clk 0:01:21.3]} 22. Qe4 {[%clk
0:01:43.1]} 22... Rfb8 {[%clk 0:01:20.6]} 23. axb5 {[%clk 0:01:42.5]} 23... axb5
{[%clk 0:01:17.9]} 24. f5 {[%clk 0:01:42.7]} 24... exf5 {[%clk 0:01:05.3]} 25.
Rxf5 {[%clk 0:01:43.6]} 25... b4 {[%clk 0:00:41.4]} 26. cxb4 {[%clk 0:01:35.2]}
26... Rxb4 {[%clk 0:00:39.4]} 27. Raf1 {[%clk 0:01:34]} 27... c3 {[%clk
0:00:29.8]} 28. Rxf7 {[%clk 0:00:54.8]} 28... Qxf7 {[%clk 0:00:26.6]} 29. Rxf7
{[%clk 0:00:54.4]} 29... Kxf7 {[%clk 0:00:27.1]} 30. Qf5+ {[%clk 0:00:41.2]}
30... Kg8 {[%clk 0:00:21.8]} 31. e6 {[%clk 0:00:36.4]} 31... c2 {[%clk
0:00:19.1]} 32. Qf7+ {[%clk 0:00:36.3]} 32... Kh8 {[%clk 0:00:18.6]} 33. Qh5+
{[%clk 0:00:36.8]} 33... Kg8 {[%clk 0:00:19.1]} 34. Qf7+ {[%clk 0:00:37.5]}
34... Kh8 {[%clk 0:00:19]} 35. Qh5+ {[%clk 0:00:37.4]} 35... Kg8 {[%clk
0:00:18.8]} 36. Qf7+ {[%clk 0:00:37.8]} 1/2-1/2

[Event "Late-Titled-Tuesday-Blitz-October-24-2023"]
[Site "Chess.com"]
[Date "2023.10.24"]
[Round "11"]
[White "Freeeeeeeeeeeeeeeeee"]
[Black "Eloist"]
[Result "0-1"]
[WhiteElo "2075"]
[BlackElo "2447"]
[TimeControl "180+1"]
[EndTime "16:06:33 PDT"]
[Termination "Eloist won on time"]

1. Nc3 {[%clk 0:02:59.6]} 1... d5 {[%clk 0:02:57.3]} 2. Nf3 {[%clk 0:02:49.7]}
2... d4 {[%clk 0:02:54.9]} 3. Ne4 {[%clk 0:02:49.3]} 3... Bf5 {[%clk 0:02:51.1]}
4. Ng3 {[%clk 0:02:47.4]} 4... Bg6 {[%clk 0:02:50.7]} 5. h4 {[%clk 0:02:46.2]}
5... h6 {[%clk 0:02:46.2]} 6. h5 {[%clk 0:02:44.4]} 6... Bh7 {[%clk 0:02:46]} 7.
e4 {[%clk 0:02:44.5]} 7... e6 {[%clk 0:02:35.6]} 8. Bc4 {[%clk 0:02:37.7]} 8...
c5 {[%clk 0:02:27.3]} 9. d3 {[%clk 0:02:35.8]} 9... Nc6 {[%clk 0:02:26.7]} 10.
Bb5 {[%clk 0:02:34.4]} 10... Qa5+ {[%clk 0:02:25.4]} 11. Bd2 {[%clk 0:02:31.5]}
11... Qxb5 {[%clk 0:02:25.2]} 12. b3 {[%clk 0:02:32]} 12... Bd6 {[%clk
0:02:22.5]} 13. Ne2 {[%clk 0:02:30.4]} 13... Nf6 {[%clk 0:02:18.6]} 14. a4
{[%clk 0:02:25.7]} 14... Qb6 {[%clk 0:02:17.9]} 15. a5 {[%clk 0:02:20.6]} 15...
Qc7 {[%clk 0:02:17.6]} 16. Nh4 {[%clk 0:02:07.8]} 16... Nxh5 {[%clk 0:02:11.5]}
17. g3 {[%clk 0:01:50.3]} 17... O-O {[%clk 0:01:59.1]} 18. f4 {[%clk 0:01:49.4]}
18... Nxg3 {[%clk 0:01:54.4]} 19. Nxg3 {[%clk 0:01:48.7]} 19... Bxf4 {[%clk
0:01:54]} 20. Ne2 {[%clk 0:01:27.4]} 20... Bxd2+ {[%clk 0:01:36.2]} 21. Qxd2
{[%clk 0:01:28.3]} 21... f5 {[%clk 0:01:34.7]} 22. Rg1 {[%clk 0:01:22.5]} 22...
f4 {[%clk 0:01:26.9]} 23. Nf3 {[%clk 0:01:08]} 23... Ne5 {[%clk 0:01:26.6]} 24.
Nxe5 {[%clk 0:01:04.3]} 24... Qxe5 {[%clk 0:01:27.5]} 25. O-O-O {[%clk
0:01:04.1]} 25... f3 {[%clk 0:01:26]} 26. Ng3 {[%clk 0:00:45.3]} 26... f2 {[%clk
0:01:25]} 27. Rg2 {[%clk 0:00:36.9]} 27... Rf3 {[%clk 0:01:13.9]} 28. Nf1 {[%clk
0:00:27.1]} 28... Qf4 {[%clk 0:01:11.5]} 29. Qxf4 {[%clk 0:00:19.9]} 29... Rxf4
{[%clk 0:01:12.4]} 30. Rd2 {[%clk 0:00:18.1]} 30... Raf8 {[%clk 0:01:11.2]} 31.
Kd1 {[%clk 0:00:18.3]} 31... e5 {[%clk 0:01:02.5]} 32. Rh2 {[%clk 0:00:15.2]}
32... R8f6 {[%clk 0:00:54.1]} 33. Ke2 {[%clk 0:00:13.4]} 33... Bxe4 {[%clk
0:00:50.2]} 34. dxe4 {[%clk 0:00:11.7]} 34... Rxe4+ {[%clk 0:00:50.4]} 35. Kd3
{[%clk 0:00:10.3]} 35... Re1 {[%clk 0:00:50]} 36. Rh1 {[%clk 0:00:04.6]} 36...
e4+ {[%clk 0:00:49.8]} 37. Kc4 {[%clk 0:00:04.9]} 37... e3 {[%clk 0:00:49.7]}
38. Rd3 {[%clk 0:00:03.4]} 38... e2 {[%clk 0:00:49.2]} 0-1

[Event "Late-Titled-Tuesday-Blitz-October-24-2023"]
[Site "Chess.com"]
[Date "2023.10.24"]
[Round "11"]
[White "Witik"]
[Black "ellatambien"]
[Result "0-1"]
[WhiteElo "2793"]
[BlackElo "2677"]
[TimeControl "180+1"]
[EndTime "16:06:41 PDT"]
[Termination "ellatambien won on time"]

1. e4 {[%clk 0:02:52.1]} 1... e5 {[%clk 0:02:59]} 2. Nf3 {[%clk 0:02:52]} 2...
Nc6 {[%clk 0:02:58.3]} 3. Bb5 {[%clk 0:02:52]} 3... Bc5 {[%clk 0:02:56.6]} 4.
O-O {[%clk 0:02:50.1]} 4... Qf6 {[%clk 0:02:55.5]} 5. Nc3 {[%clk 0:02:48.8]}
5... Nge7 {[%clk 0:02:55.1]} 6. Nd5 {[%clk 0:02:44.5]} 6... Qd6 {[%clk
0:02:44.5]} 7. c3 {[%clk 0:02:25.5]} 7... Nxd5 {[%clk 0:02:40.5]} 8. exd5 {[%clk
0:02:25.4]} 8... Qxd5 {[%clk 0:02:41.1]} 9. d4 {[%clk 0:02:25.7]} 9... Be7
{[%clk 0:02:41.5]} 10. c4 {[%clk 0:02:18.4]} 10... Qd6 {[%clk 0:02:41.8]} 11. d5
{[%clk 0:02:08.4]} 11... Nd4 {[%clk 0:02:24.6]} 12. Nxd4 {[%clk 0:02:06.9]}
12... exd4 {[%clk 0:02:25.5]} 13. Qxd4 {[%clk 0:02:01.8]} 13... Qf6 {[%clk
0:02:25]} 14. Qxf6 {[%clk 0:01:34.4]} 14... Bxf6 {[%clk 0:02:24.9]} 15. Re1+
{[%clk 0:01:35.1]} 15... Kd8 {[%clk 0:02:21.4]} 16. c5 {[%clk 0:01:11.5]} 16...
d6 {[%clk 0:02:21.4]} 17. cxd6 {[%clk 0:01:09.5]} 17... cxd6 {[%clk 0:02:21.1]}
18. Bf4 {[%clk 0:01:09.9]} 18... Bxb2 {[%clk 0:02:11.2]} 19. Rab1 {[%clk
0:01:02.6]} 19... Be5 {[%clk 0:02:10.8]} 20. Bxe5 {[%clk 0:01:01.1]} 20... dxe5
{[%clk 0:02:09.4]} 21. Rxe5 {[%clk 0:01:01.8]} 21... a6 {[%clk 0:02:06.3]} 22.
Ba4 {[%clk 0:00:51.2]} 22... b5 {[%clk 0:02:02.8]} 23. Bb3 {[%clk 0:00:51.8]}
23... Re8 {[%clk 0:01:59.1]} 24. f4 {[%clk 0:00:47.2]} 24... f6 {[%clk
0:01:57.9]} 25. Rxe8+ {[%clk 0:00:28.8]} 25... Kxe8 {[%clk 0:01:58.8]} 26. Kf2
{[%clk 0:00:28.4]} 26... Kd7 {[%clk 0:01:56.5]} 27. Ke3 {[%clk 0:00:28.4]} 27...
Kd6 {[%clk 0:01:56.6]} 28. Kd4 {[%clk 0:00:28.9]} 28... Bd7 {[%clk 0:01:51.4]}
29. Re1 {[%clk 0:00:22.9]} 29... Re8 {[%clk 0:01:51.2]} 30. Rxe8 {[%clk
0:00:12]} 30... Bxe8 {[%clk 0:01:52.1]} 31. g3 {[%clk 0:00:07.5]} 31... a5
{[%clk 0:01:49.4]} 32. a3 {[%clk 0:00:07.6]} 32... Bf7 {[%clk 0:01:40.9]} 33.
Ba2 {[%clk 0:00:07.5]} 33... a4 {[%clk 0:01:37]} 34. g4 {[%clk 0:00:04.8]} 34...
g5 {[%clk 0:01:34.8]} 35. f5 {[%clk 0:00:03.9]} 35... h6 {[%clk 0:01:34.4]} 36.
h3 {[%clk 0:00:03.8]} 36... Bg8 {[%clk 0:01:33.1]} 37. Ke4 {[%clk 0:00:01.7]}
37... Bf7 {[%clk 0:01:22.8]} 38. Kd4 {[%clk 0:00:02.2]} 38... h5 {[%clk
0:01:22.4]} 39. Ke4 {[%clk 0:00:02.8]} 39... h4 {[%clk 0:01:22.5]} 40. Kd4
{[%clk 0:00:03.1]} 40... Be8 {[%clk 0:01:22.5]} 41. Bb1 {[%clk 0:00:02.2]} 41...
Bd7 {[%clk 0:01:21.8]} 42. Be4 {[%clk 0:00:02.6]} 42... Bc8 {[%clk 0:01:21.5]}
43. Bf3 {[%clk 0:00:02.7]} 43... Bb7 {[%clk 0:01:21.6]} 44. Be4 {[%clk
0:00:03.3]} 44... b4 {[%clk 0:01:17.3]} 45. axb4 {[%clk 0:00:03]} 45... a3
{[%clk 0:01:17.8]} 46. Kc3 {[%clk 0:00:02.4]} 46... Ba6 {[%clk 0:01:12.8]} 47.
Kb3 {[%clk 0:00:02.6]} 47... Bf1 {[%clk 0:01:12.9]} 48. Kxa3 {[%clk 0:00:02.5]}
48... Bxh3 {[%clk 0:01:13.6]} 49. Bf3 {[%clk 0:00:03.1]} 49... Bf1 {[%clk
0:01:13]} 50. Ka4 {[%clk 0:00:03.2]} 50... h3 {[%clk 0:01:13.5]} 0-1

[Event "Late-Titled-Tuesday-Blitz-October-24-2023"]
[Site "Chess.com"]
[Date "2023.10.24"]
[Round "11"]
[White "The_Princess_Moon"]
[Black "Escudito"]
[Result "1/2-1/2"]
[WhiteElo "2335"]
[BlackElo "2473"]
[TimeControl "180+1"]
[EndTime "16:06:41 PDT"]
[Termination "Game drawn by repetition"]

1. e4 {[%clk 0:03:00.9]} 1... c5 {[%clk 0:02:59.8]} 2. Nf3 {[%clk 0:02:58]} 2...
d6 {[%clk 0:03:00.2]} 3. c3 {[%clk 0:02:47.7]} 3... Nf6 {[%clk 0:02:59.5]} 4. h3
{[%clk 0:02:45.9]} 4... Nc6 {[%clk 0:02:52.2]} 5. Bd3 {[%clk 0:02:45.2]} 5... g5
{[%clk 0:02:44.5]} 6. Bc2 {[%clk 0:02:35.8]} 6... g4 {[%clk 0:02:43.7]} 7. hxg4
{[%clk 0:02:33.7]} 7... Bxg4 {[%clk 0:02:44.6]} 8. d4 {[%clk 0:02:31.1]} 8...
cxd4 {[%clk 0:02:43.5]} 9. cxd4 {[%clk 0:02:32]} 9... Bxf3 {[%clk 0:02:37.5]}
10. gxf3 {[%clk 0:02:31.6]} 10... e5 {[%clk 0:02:33.2]} 11. d5 {[%clk
0:02:28.1]} 11... Nd4 {[%clk 0:02:32.3]} 12. Nc3 {[%clk 0:02:14.1]} 12... Be7
{[%clk 0:02:21.3]} 13. Ba4+ {[%clk 0:02:13.1]} 13... Nd7 {[%clk 0:02:15.6]} 14.
Be3 {[%clk 0:02:11.1]} 14... b5 {[%clk 0:02:05.1]} 15. Bxb5 {[%clk 0:01:51.9]}
15... Nxb5 {[%clk 0:01:54.9]} 16. Nxb5 {[%clk 0:01:52.8]} 16... Qa5+ {[%clk
0:01:54.4]} 17. Nc3 {[%clk 0:01:51.6]} 17... Rb8 {[%clk 0:01:39.9]} 18. Qd2
{[%clk 0:01:50.1]} 18... Nc5 {[%clk 0:01:36.2]} 19. b3 {[%clk 0:01:26.4]} 19...
Nxb3 {[%clk 0:01:31.8]} 20. axb3 {[%clk 0:01:22.9]} 20... Qxa1+ {[%clk
0:01:31.5]} 21. Nd1 {[%clk 0:01:18.7]} 21... Rxb3 {[%clk 0:01:19.4]} 22. Qc2
{[%clk 0:01:10.1]} 22... Rb1 {[%clk 0:01:03.9]} 23. Qc8+ {[%clk 0:01:00.9]}
23... Bd8 {[%clk 0:01:03.4]} 24. Qc6+ {[%clk 0:00:25]} 24... Ke7 {[%clk
0:00:57.4]} 25. Bg5+ {[%clk 0:00:19.6]} 25... f6 {[%clk 0:00:57.7]} 26. Bxf6+
{[%clk 0:00:15.4]} 26... Kxf6 {[%clk 0:00:58.6]} 27. Qxd6+ {[%clk 0:00:10.8]}
27... Kf7 {[%clk 0:00:58.9]} 28. Qe6+ {[%clk 0:00:09.2]} 28... Kf8 {[%clk
0:00:59.3]} 29. Qf5+ {[%clk 0:00:07.5]} 29... Ke8 {[%clk 0:00:56]} 30. Qe6+
{[%clk 0:00:07.3]} 30... Be7 {[%clk 0:00:55.4]} 31. Qc8+ {[%clk 0:00:07]} 31...
Kf7 {[%clk 0:00:54.5]} 32. Qe6+ {[%clk 0:00:06.8]} 32... Kf8 {[%clk 0:00:54]}
33. Qc8+ {[%clk 0:00:06]} 33... Kf7 {[%clk 0:00:45]} 34. Qe6+ {[%clk 0:00:05.5]}
34... Ke8 {[%clk 0:00:43.2]} 35. Qc8+ {[%clk 0:00:04.9]} 35... Bd8 {[%clk
0:00:42.9]} 36. Qe6+ {[%clk 0:00:04.4]} 36... Kf8 {[%clk 0:00:42.1]} 37. Qf5+
{[%clk 0:00:02.3]} 37... Ke7 {[%clk 0:00:42.5]} 38. Qe6+ {[%clk 0:00:02.1]}
38... Kf8 {[%clk 0:00:42.1]} 1/2-1/2

[Event "Late-Titled-Tuesday-Blitz-October-24-2023"]
[Site "Chess.com"]
[Date "2023.10.24"]
[Round "11"]
[White "Meri-Arabidze"]
[Black "ItalianMachine"]
[Result "1-0"]
[WhiteElo "2631"]
[BlackElo "2453"]
[TimeControl "180+1"]
[EndTime "16:06:47 PDT"]
[Termination "Meri-Arabidze won on time"]

1. Nf3 {[%clk 0:03:00.9]} 1... Nf6 {[%clk 0:02:58.9]} 2. c4 {[%clk 0:03:00]}
2... g6 {[%clk 0:02:58.7]} 3. b3 {[%clk 0:02:59.1]} 3... Bg7 {[%clk 0:02:58.7]}
4. Bb2 {[%clk 0:02:59.4]} 4... O-O {[%clk 0:02:55.4]} 5. g3 {[%clk 0:02:59.7]}
5... c6 {[%clk 0:02:54.7]} 6. Bg2 {[%clk 0:02:59.2]} 6... d5 {[%clk 0:02:55.2]}
7. O-O {[%clk 0:02:59.5]} 7... Na6 {[%clk 0:02:51.1]} 8. d3 {[%clk 0:02:53.9]}
8... Re8 {[%clk 0:02:29.4]} 9. Nbd2 {[%clk 0:02:53.7]} 9... Qc7 {[%clk
0:02:12.1]} 10. Rc1 {[%clk 0:02:53]} 10... e5 {[%clk 0:02:11.9]} 11. cxd5 {[%clk
0:02:51.5]} 11... Nxd5 {[%clk 0:02:12.8]} 12. Nc4 {[%clk 0:02:49.7]} 12... f6
{[%clk 0:02:12.8]} 13. a3 {[%clk 0:02:48.2]} 13... Be6 {[%clk 0:02:11.7]} 14. b4
{[%clk 0:02:47.5]} 14... Rad8 {[%clk 0:02:11.2]} 15. Qc2 {[%clk 0:02:33.5]}
15... Qb8 {[%clk 0:02:02.1]} 16. Na5 {[%clk 0:02:32.6]} 16... Bf7 {[%clk
0:01:53.2]} 17. Nd2 {[%clk 0:02:31.8]} 17... f5 {[%clk 0:01:52.4]} 18. Ndb3
{[%clk 0:02:29.5]} 18... Ndc7 {[%clk 0:01:40.8]} 19. Nc5 {[%clk 0:02:07.6]}
19... Nxc5 {[%clk 0:01:39.7]} 20. bxc5 {[%clk 0:02:08.5]} 20... Nb5 {[%clk
0:01:25.9]} 21. e3 {[%clk 0:01:55.2]} 21... Rd7 {[%clk 0:01:11.2]} 22. a4 {[%clk
0:01:53.8]} 22... Nc7 {[%clk 0:01:11.4]} 23. Rb1 {[%clk 0:01:48.9]} 23... Na6
{[%clk 0:01:09.4]} 24. Ba3 {[%clk 0:01:43.9]} 24... Qc8 {[%clk 0:01:05.6]} 25.
Nc4 {[%clk 0:01:41.6]} 25... Bf8 {[%clk 0:01:02.9]} 26. Nd6 {[%clk 0:01:21.3]}
26... Bxd6 {[%clk 0:01:01.2]} 27. cxd6 {[%clk 0:01:22.2]} 27... c5 {[%clk
0:00:57.2]} 28. Rfc1 {[%clk 0:01:21.1]} 28... b6 {[%clk 0:00:52.8]} 29. d4
{[%clk 0:01:07.4]} 29... exd4 {[%clk 0:00:38.4]} 30. exd4 {[%clk 0:01:08.3]}
30... Rxd6 {[%clk 0:00:39]} 31. dxc5 {[%clk 0:01:08.6]} 31... bxc5 {[%clk
0:00:34.6]} 32. Qc3 {[%clk 0:00:51.4]} 32... Qd8 {[%clk 0:00:14.1]} 33. h4
{[%clk 0:00:39]} 33... Rd3 {[%clk 0:00:13.4]} 34. Qa1 {[%clk 0:00:36.1]} 34...
Qd4 {[%clk 0:00:10.3]} 35. Bb2 {[%clk 0:00:34.2]} 35... Qg4 {[%clk 0:00:03.5]}
36. Bh8 {[%clk 0:00:34.4]} 1-0

[Event "Late-Titled-Tuesday-Blitz-October-24-2023"]
[Site "Chess.com"]
[Date "2023.10.24"]
[Round "11"]
[White "Lennis93"]
[Black "WPWPWP-2015"]
[Result "1-0"]
[WhiteElo "2762"]
[BlackElo "2597"]
[TimeControl "180+1"]
[EndTime "16:06:48 PDT"]
[Termination "Lennis93 won on time"]

1. Nf3 {[%clk 0:03:00.9]} 1... Nf6 {[%clk 0:02:57.6]} 2. c4 {[%clk 0:03:00.9]}
2... c6 {[%clk 0:02:57.1]} 3. Nc3 {[%clk 0:03:01.5]} 3... d5 {[%clk 0:02:57.2]}
4. e3 {[%clk 0:03:02.4]} 4... Bg4 {[%clk 0:02:56.5]} 5. Qb3 {[%clk 0:03:02]}
5... Qc7 {[%clk 0:02:56.1]} 6. Ne5 {[%clk 0:02:57.4]} 6... Be6 {[%clk
0:02:54.2]} 7. d4 {[%clk 0:02:55.6]} 7... Nbd7 {[%clk 0:02:52]} 8. f4 {[%clk
0:02:52.3]} 8... g6 {[%clk 0:02:48]} 9. cxd5 {[%clk 0:02:49.6]} 9... Bxd5 {[%clk
0:02:38]} 10. Nxd5 {[%clk 0:02:45.1]} 10... Nxd5 {[%clk 0:02:24.9]} 11. Bc4
{[%clk 0:02:44.3]} 11... e6 {[%clk 0:02:23.9]} 12. Bd2 {[%clk 0:02:43.2]} 12...
Nxe5 {[%clk 0:02:18.7]} 13. fxe5 {[%clk 0:02:42.7]} 13... Be7 {[%clk 0:02:11.6]}
14. Rc1 {[%clk 0:02:37.2]} 14... Qb6 {[%clk 0:02:04.2]} 15. O-O {[%clk
0:02:28.3]} 15... Qxb3 {[%clk 0:02:01.3]} 16. Bxb3 {[%clk 0:02:27.9]} 16... Bg5
{[%clk 0:02:00]} 17. Kf2 {[%clk 0:02:24]} 17... O-O {[%clk 0:01:48.3]} 18. Ke2
{[%clk 0:02:24.2]} 18... Be7 {[%clk 0:01:42.3]} 19. e4 {[%clk 0:02:23.7]} 19...
Nc7 {[%clk 0:01:37.1]} 20. Rc3 {[%clk 0:02:17.7]} 20... Nb5 {[%clk 0:01:34.3]}
21. Rd3 {[%clk 0:02:17.9]} 21... Rad8 {[%clk 0:01:33]} 22. d5 {[%clk 0:02:16.7]}
22... cxd5 {[%clk 0:01:16.6]} 23. exd5 {[%clk 0:02:17.6]} 23... exd5 {[%clk
0:01:13.1]} 24. Bh6 {[%clk 0:02:13.1]} 24... Nc7 {[%clk 0:00:30.9]} 25. Bxf8
{[%clk 0:02:08.6]} 25... Bxf8 {[%clk 0:00:31]} 26. Rfd1 {[%clk 0:02:05.9]} 26...
Re8 {[%clk 0:00:28.3]} 27. Bxd5 {[%clk 0:02:06]} 27... Rxe5+ {[%clk 0:00:28.4]}
28. Kf1 {[%clk 0:02:03.2]} 28... b6 {[%clk 0:00:27.9]} 29. Bc4 {[%clk
0:01:56.9]} 29... Rc5 {[%clk 0:00:24.1]} 30. Bb3 {[%clk 0:01:56]} 30... Rf5+
{[%clk 0:00:20.5]} 31. Rf3 {[%clk 0:01:56.1]} 31... Rxf3+ {[%clk 0:00:19.6]} 32.
gxf3 {[%clk 0:01:57]} 32... Bg7 {[%clk 0:00:19.1]} 33. Rd7 {[%clk 0:01:57]}
33... Be5 {[%clk 0:00:17.6]} 34. Rxf7 {[%clk 0:01:54.1]} 34... Kh8 {[%clk
0:00:15.5]} 35. f4 {[%clk 0:01:54.1]} 35... Bd6 {[%clk 0:00:15.2]} 36. Kg2
{[%clk 0:01:51.9]} 36... Nb5 {[%clk 0:00:14.3]} 37. Bc4 {[%clk 0:01:42.4]} 37...
Nd4 {[%clk 0:00:14.3]} 38. Rxa7 {[%clk 0:01:34.1]} 38... Nf5 {[%clk 0:00:11.3]}
39. Kf3 {[%clk 0:01:31.9]} 39... h5 {[%clk 0:00:09.5]} 40. Bd3 {[%clk
0:01:27.6]} 40... Nd4+ {[%clk 0:00:08.4]} 41. Ke3 {[%clk 0:01:27.6]} 41... Ne6
{[%clk 0:00:08.3]} 42. Bxg6 {[%clk 0:01:25.9]} 42... Bxf4+ {[%clk 0:00:08.1]}
43. Ke4 {[%clk 0:01:24.7]} 43... Bxh2 {[%clk 0:00:07.2]} 44. Bxh5 {[%clk
0:01:21.3]} 44... Nc5+ {[%clk 0:00:07.1]} 45. Kd5 {[%clk 0:01:19.9]} 45... Bg1
{[%clk 0:00:07.6]} 46. Bg6 {[%clk 0:01:15.7]} 46... Kg8 {[%clk 0:00:05.8]} 47.
Bf5 {[%clk 0:01:14.2]} 47... b5 {[%clk 0:00:02.9]} 48. Ra5 {[%clk 0:01:12.1]}
48... Na4 {[%clk 0:00:01.3]} 49. Rxb5 {[%clk 0:01:11.6]} 49... Kf8 {[%clk
0:00:01]} 50. Kc6 {[%clk 0:01:07.5]} 1-0

[Event "Late-Titled-Tuesday-Blitz-October-24-2023"]
[Site "Chess.com"]
[Date "2023.10.24"]
[Round "11"]
[White "YellowJacek"]
[Black "HajiyevKanan"]
[Result "0-1"]
[WhiteElo "2327"]
[BlackElo "2508"]
[TimeControl "180+1"]
[EndTime "16:06:51 PDT"]
[Termination "HajiyevKanan won by resignation"]

1. c4 {[%clk 0:03:00.9]} 1... Nf6 {[%clk 0:02:58.4]} 2. g3 {[%clk 0:03:00.3]}
2... c6 {[%clk 0:02:59.2]} 3. Bg2 {[%clk 0:03:00.2]} 3... d5 {[%clk 0:03:00.1]}
4. Nf3 {[%clk 0:03:00]} 4... g6 {[%clk 0:03:00.6]} 5. O-O {[%clk 0:02:59.5]}
5... Bg7 {[%clk 0:03:01.3]} 6. cxd5 {[%clk 0:02:57.4]} 6... cxd5 {[%clk
0:03:02.2]} 7. d4 {[%clk 0:02:57.7]} 7... O-O {[%clk 0:03:03.1]} 8. Ne5 {[%clk
0:02:53.3]} 8... Nbd7 {[%clk 0:03:01.6]} 9. Bf4 {[%clk 0:02:52.4]} 9... Nxe5
{[%clk 0:03:00.2]} 10. Bxe5 {[%clk 0:02:52]} 10... Qb6 {[%clk 0:02:54.3]} 11.
Qb3 {[%clk 0:02:44.5]} 11... Qxb3 {[%clk 0:02:53.9]} 12. axb3 {[%clk 0:02:45.4]}
12... e6 {[%clk 0:02:52.3]} 13. Nc3 {[%clk 0:02:44.1]} 13... Bd7 {[%clk
0:02:51.2]} 14. Ra5 {[%clk 0:02:40.2]} 14... Rfc8 {[%clk 0:02:47]} 15. Rfa1
{[%clk 0:02:38.4]} 15... a6 {[%clk 0:02:46.9]} 16. b4 {[%clk 0:02:38.7]} 16...
Ne8 {[%clk 0:02:26]} 17. Bxg7 {[%clk 0:02:36.4]} 17... Kxg7 {[%clk 0:02:24.5]}
18. b5 {[%clk 0:02:32.9]} 18... Nc7 {[%clk 0:02:06.1]} 19. bxa6 {[%clk
0:02:29.9]} 19... bxa6 {[%clk 0:02:01.4]} 20. e3 {[%clk 0:02:26.2]} 20... Rab8
{[%clk 0:02:01.1]} 21. R1a2 {[%clk 0:02:26.2]} 21... Rb4 {[%clk 0:01:55]} 22.
Rc5 {[%clk 0:02:20.5]} 22... Nb5 {[%clk 0:01:41.8]} 23. Na4 {[%clk 0:02:05.5]}
23... Rb8 {[%clk 0:01:15.8]} 24. Bf1 {[%clk 0:00:35.7]} 24... Nxd4 {[%clk
0:01:14.7]} 25. Nc3 {[%clk 0:00:27.7]} 25... Nf3+ {[%clk 0:01:01.7]} 26. Kg2
{[%clk 0:00:28]} 26... Ne1+ {[%clk 0:01:01.9]} 27. Kg1 {[%clk 0:00:26.1]} 27...
Rxb2 {[%clk 0:01:02]} 28. Rxb2 {[%clk 0:00:21.1]} 28... Rxb2 {[%clk 0:01:02.9]}
29. Bxa6 {[%clk 0:00:21.1]} 29... Rc2 {[%clk 0:00:53.6]} 30. Kf1 {[%clk
0:00:15.6]} 30... Nf3 {[%clk 0:00:49.3]} 31. Kg2 {[%clk 0:00:15.8]} 31... Nd2
{[%clk 0:00:45.9]} 32. Rc7 {[%clk 0:00:05.4]} 32... Ba4 {[%clk 0:00:17.6]} 33.
Ne2 {[%clk 0:00:05.5]} 33... Rxc7 {[%clk 0:00:17.1]} 0-1